[Event "TUR-chT Superleague 2018"]
[Site "Ankara"]
[Date "2018.07.28"]
[Round "4"]
[White "Samani, Yamac"]
[Black "Kilic, Efe Mert"]
[Result "1-0"]
[ECO "C60"]
[WhiteElo "2227"]
[BlackElo "2317"]
[Annotator "NA"]
[PlyCount "137"]
[EventDate "2018.07.25"]
[EventType "team-tourn"]
[EventCountry "TUR"]
[SourceTitle "playchess.com"]
[Source "ChessBase"]
[SourceQuality "1"]
[TimeControl "40/5400+30:1800+30"]

1. e4 {[%emt 0:00:30]} e5 {[%emt 0:01:00]} 2. Nf3 {[%emt 0:00:30]} Nc6 {[%emt 0:00:30]} 3. Bb5 {[%emt 0:00:30]} Nge7 {[%emt 0:00:00]} 4. O-O {[%emt 0:00:30]} g6 {[%emt 0:00:00]} 5. c3 {[%emt 0:04:30]} Bg7 {[%emt 0:00:30]} 6. d4 {[%emt 0:01:30]} exd4 {[%emt 0:00:30]} 7. cxd4 {[%emt 0:00:30]} a6 {[%emt 0:00:00]} 8. Ba4 {[%emt 0:00:30]} b5 {[%emt 0:00:00]} 9. Bb3 {[%emt 0:02:30]} d6 {[%emt 0:02:30]} 10. h3 {[%emt 0:04:30]} O-O {[%emt 0:00:00]} 11. a4 {[%emt 0:02:30]} Bb7 {[%emt 0:04:00]} 12. Re1 {[%emt 0:09:30]} h6 {[%emt 0:00:30]} 13. Nc3 {[%emt 0:02:30]} b4 {[%emt 0:04:30]} 14. Ne2 {[%emt 0:17:30]} Na5 {[%emt 0:03:30]} 15. Bc2 {[%emt 0:00:00]} c5 {[%emt 0:00:30]} 16. Ng3 {[%emt 0:08:00]} Rc8 {[%emt 0:02:30]} 17. d5 {[%emt 0:01:30]} Nc4 {[%emt 0:06:30]} 18. Qe2 {[%emt 0:05:30]} Nxb2 {[%emt 0:07:30]} 19. Rb1 {[%emt 0:01:30]} Re8 {[%emt 0:08:30]} 20. Qf1 {[%emt 0:06:30]} c4 {[%emt 0:08:30]} 21. Bxb2 {[%emt 0:00:30]} Bxb2 {[%emt 0:00:30]} 22. Rxb2 {[%emt 0:00:30]} a5 {[%emt 0:01:30]} 23. Rc1 {[%emt 0:02:30]} Nxd5 {[%emt 0:10:30]} 24. exd5 {[%emt 0:00:30]} Qf6 {[%emt 0:00:00]} 25. Rbb1 {[%emt 0:02:30]} Bxd5 {[%emt 0:00:00]} 26. Qd1 {[%emt 0:01:30]} Bxf3 {[%emt 0:05:30]} 27. gxf3 {[%emt 0:04:43]} Red8 {[%emt 0:07:30]} 28. Ne4 {[%emt 0:01:52]} Qe5 {[%emt 0:01:30]} 29. Qd5 {[%emt 0:02:38]} Qxd5 {[%emt 0:09:12]} 30. Nf6+ {[%emt 0:00:06]} Kg7 {[%emt 0:00:30]} 31. Nxd5 {[%emt 0:00:04]} Rc5 {[%emt 0:01:13]} 32. Rd1 {[%emt 0:00:35]} Rb8 {[%emt 0:11:15]} 33. Nc3 {[%emt 0:01:24]} Rd8 {[%emt 0:03:18]} 34. Ne4 {[%emt 0:01:29]} Rc6 {[%emt 0:01:33]} 35. Rd5 {[%emt 0:01:19]} f5 {[%emt 0:00:01]} 36. Nd2 {[%emt 0:01:00]} Re8 {[%emt 0:00:54]} 37. f4 {[%emt 0:03:46]} b3 {[%emt 0:01:00]} 38. Nxb3 {[%emt 0:07:03]} cxb3 {[%emt 0:00:30]} 39. Bxb3 {[%emt 0:00:00]} Re4 {[%emt 0:00:48]} 40. Rxa5 {[%emt 0:04:00]} Rxf4 {[%emt 0:00:46]} 41. Rb5 {[%emt 0:11:57]} Rc3 {[%emt 0:00:30]} 42. Kg2 {[%emt 0:05:59]} g5 {[%emt 0:00:30]} 43. a5 {[%emt 0:01:35]} g4 {[%emt 0:00:30]} 44. hxg4 {[%emt 0:01:35]} Rxg4+ {[%emt 0:00:30]} 45. Kf1 {[%emt 0:00:08]} Rh4 {[%emt 0:01:30]} 46. Bd5 {[%emt 0:01:50]} Ra4 {[%emt 0:00:30]} 47. Bb7 {[%emt 0:00:28]} f4 {[%emt 0:02:30]} 48. Kg2 {[%emt 0:02:02]} Ra2 {[%emt 0:05:30]} 49. R1b2 {[%emt 0:00:57]} Ra1 {[%emt 0:00:30]} 50. a6 {[%emt 0:01:13]} f3+ {[%emt 0:00:30]} 51. Kg3 {[%emt 0:00:43]} Kf6 {[%emt 0:01:30]} 52. R2b3 {[%emt 0:01:44]} Rg1+ {[%emt 0:00:30]} 53. Kf4 {[%emt 0:00:15]} Rc4+ {[%emt 0:00:30]} 54. Kxf3 {[%emt 0:00:07]} Ra4 {[%emt 0:00:30]} 55. Rd3 {[%emt 0:01:31]} Ke7 {[%emt 0:00:30]} 56. Rb6 {[%emt 0:00:36]} Rg6 {[%emt 0:00:30]} 57. Bc6 {[%emt 0:00:47]} Rf6+ {[%emt 0:00:30]} 58. Kg2 {[%emt 0:02:15]} Rg6+ {[%emt 0:00:00]} 59. Rg3 {[%emt 0:00:25]} Rxg3+ {[%emt 0:00:00]} 60. fxg3 {[%emt 0:01:22]} Ra2+ {[%emt 0:00:30]} 61. Kf3 {[%emt 0:00:00]} Ra3+ {[%emt 0:01:30]} 62. Ke4 {[%emt 0:00:00]} Kd8 {[%emt 0:01:30]} 63. Bd5 {[%emt 0:00:30]} Ke7 {[%emt 0:00:30]} 64. Rb7+ {[%emt 0:00:00]} Kf6 {[%emt 0:00:30]} 65. Rf7+ {[%emt 0:01:19]} Kg6 {[%emt 0:00:00]} 66. a7 {[%emt 0:00:24]} Ra5 {[%emt 0:00:00]} 67. Rd7 {[%emt 0:00:12]} Ra4+ {[%emt 0:00:30]} 68. Kd3 {[%emt 0:00:00]} Ra3+ {[%emt 0:00:00]} 69. Ke4 {[%emt 0:00:18]} 1-0

[Event "TUR-chT Superleague 2018"]
[Site "Ankara"]
[Date "2018.07.28"]
[Round "4"]
[White "Isik, Alparslan"]
[Black "Nihal Sarin"]
[Result "0-1"]
[ECO "A42"]
[WhiteElo "2212"]
[BlackElo "2551"]
[Annotator "ChessBase"]
[PlyCount "98"]
[EventDate "2018.07.25"]
[EventType "team-tourn"]
[EventCountry "TUR"]
[SourceTitle "playchess.com"]
[Source "ChessBase"]
[SourceQuality "1"]
[TimeControl "40/5400+30:1800+30"]

1. d4 {[%emt 0:00:30]} g6 {[%emt 0:01:00]} 2. c4 {[%emt 0:00:30]} Bg7 {[%emt 0:00:30]} 3. e4 {[%emt 0:00:00]} d6 {[%emt 0:00:00]} 4. Nc3 {[%emt 0:00:00]} e5 {[%emt 0:01:00]} 5. Nf3 {[%emt 0:01:30]} Bg4 {[%emt 0:00:30]} 6. d5 {[%emt 0:01:30]} Nd7 {[%emt 0:00:30]} 7. h3 {[%emt 0:02:30]} Bxf3 {[%emt 0:00:30]} 8. Qxf3 {[%emt 0:00:00]} h5 {[%emt 0:00:00]} 9. Bd3 {[%emt 0:01:00]} Bh6 {[%emt 0:00:00]} 10. O-O {[%emt 0:01:30]} a5 {[%emt 0:01:30]} 11. Bc2 {[%emt 0:06:30]} Bxc1 {[%emt 0:02:30]} 12. Rfxc1 {[%emt 0:01:30]} Ngf6 {[%emt 0:06:30]} 13. a3 {[%emt 0:03:30]} Nb6 {[%emt 0:04:30]} 14. Nb5 {[%emt 0:07:30]} O-O {[%emt 0:22:30]} 15. Bd3 {[%emt 0:06:30]} Na4 {[%emt 0:14:30]} 16. Bc2 {[%emt 0:03:30]} Nb6 {[%emt 0:00:30]} 17. Bd3 {[%emt 0:00:30]} Nfd7 {[%emt 0:13:30]} 18. b4 {[%emt 0:02:30]} axb4 {[%emt 0:00:30]} 19. axb4 {[%emt 0:00:30]} Rxa1 {[%emt 0:00:30]} 20. Rxa1 {[%emt 0:00:30]} Qb8 {[%emt 0:00:00]} 21. Qe3 {[%emt 0:08:30]} c5 {[%emt 0:01:00]} 22. dxc6 {[%emt 0:01:30]} bxc6 {[%emt 0:02:30]} 23. Nxd6 {[%emt 0:17:30]} Qxd6 {[%emt 0:00:30]} 24. c5 {[%emt 0:00:00]} Qe7 {[%emt 0:10:51]} 25. cxb6 {[%emt 0:00:00]} Qxb4 {[%emt 0:00:06]} 26. Rb1 {[%emt 0:02:30]} Qd4 {[%emt 0:01:09]} 27. Qxd4 {[%emt 0:05:30]} exd4 {[%emt 0:00:01]} 28. Rc1 {[%emt 0:00:30]} Rb8 {[%emt 0:01:26]} 29. b7 {[%emt 0:10:03]} Rxb7 {[%emt 0:00:30]} 30. Rxc6 {[%emt 0:00:00]} Ne5 {[%emt 0:00:12]} 31. Rc8+ {[%emt 0:00:19]} Kg7 {[%emt 0:00:00]} 32. Bf1 {[%emt 0:00:19]} g5 {[%emt 0:08:02]} 33. Rd8 {[%emt 0:01:41]} Rd7 {[%emt 0:00:22]} 34. Rxd7 {[%emt 0:00:12]} Nxd7 {[%emt 0:00:05]} 35. g3 {[%emt 0:02:30]} Nc5 {[%emt 0:03:19]} 36. f3 {[%emt 0:06:40]} h4 {[%emt 0:03:16]} 37. gxh4 {[%emt 0:00:30]} gxh4 {[%emt 0:00:00]} 38. Bc4 {[%emt 0:05:41]} f6 {[%emt 0:00:34]} 39. Bd5 {[%emt 0:02:02]} Nd3 {[%emt 0:03:09]} 40. Be6 {[%emt 0:00:00]} Nf4 {[%emt 0:00:28]} 41. Bd7 {[%emt 0:05:33]} d3 {[%emt 0:10:30]} 42. Kf2 {[%emt 0:18:44]} d2 {[%emt 0:00:30]} 43. Ba4 {[%emt 0:00:30]} Nxh3+ {[%emt 0:00:30]} 44. Ke3 {[%emt 0:00:00]} Ng5 {[%emt 0:00:30]} 45. Bc2 {[%emt 0:07:44]} h3 {[%emt 0:00:30]} 46. Kf2 {[%emt 0:00:06]} Kf8 {[%emt 0:00:00]} 47. Kg3 {[%emt 0:00:10]} Ke7 {[%emt 0:00:00]} 48. Kh2 {[%emt 0:00:37]} Nxf3+ {[%emt 0:00:30]} 49. Kxh3 {[%emt 0:00:10]} Ng5+ {[%emt 0:00:30]} 0-1

[Event "TUR-chT Superleague 2018"]
[Site "Ankara"]
[Date "2018.07.28"]
[Round "4"]
[White "Ozbay, Ece"]
[Black "Keskin, Elif"]
[Result "1-0"]
[ECO "B41"]
[WhiteElo "2140"]
[BlackElo "1719"]
[Annotator "NA"]
[PlyCount "117"]
[EventDate "2018.07.25"]
[EventType "team-tourn"]
[EventCountry "TUR"]
[SourceTitle "playchess.com"]
[Source "ChessBase"]
[SourceQuality "1"]
[TimeControl "40/5400+30:1800+30"]

1. e4 {[%emt 0:00:30]} c5 {[%emt 0:01:00]} 2. Nf3 {[%emt 0:00:30]} e6 {[%emt 0:00:30]} 3. d4 {[%emt 0:00:30]} cxd4 {[%emt 0:00:00]} 4. Nxd4 {[%emt 0:00:00]} a6 {[%emt 0:00:00]} 5. c4 {[%emt 0:03:00]} Qc7 {[%emt 0:01:30]} 6. Nc3 {[%emt 0:01:30]} Nf6 {[%emt 0:00:30]} 7. Be3 {[%emt 0:05:30]} d6 {[%emt 0:04:30]} 8. Be2 {[%emt 0:02:30]} Be7 {[%emt 0:03:30]} 9. O-O {[%emt 0:00:00]} Nbd7 {[%emt 0:01:30]} 10. f3 {[%emt 0:05:00]} b6 {[%emt 0:02:30]} 11. Qd2 {[%emt 0:06:30]} Bb7 {[%emt 0:01:30]} 12. Rfc1 {[%emt 0:00:30]} O-O {[%emt 0:03:30]} 13. a3 {[%emt 0:00:30]} Rac8 {[%emt 0:03:30]} 14. b4 {[%emt 0:01:30]} Qb8 {[%emt 0:02:30]} 15. Rab1 {[%emt 0:03:30]} Rfd8 {[%emt 0:00:30]} 16. Qb2 {[%emt 0:02:30]} Qa8 {[%emt 0:05:30]} 17. Na4 {[%emt 0:03:30]} Qb8 {[%emt 0:06:30]} 18. Bd3 {[%emt 0:09:30]} Ba8 {[%emt 0:07:30]} 19. Qf2 {[%emt 0:04:30]} Ne5 {[%emt 0:18:30]} 20. Be2 {[%emt 0:02:30]} Nfd7 {[%emt 0:01:30]} 21. Nb3 {[%emt 0:02:30]} b5 {[%emt 0:03:30]} 22. Nb6 {[%emt 0:01:30]} Nxb6 {[%emt 0:01:30]} 23. Bxb6 {[%emt 0:00:30]} Rd7 {[%emt 0:01:30]} 24. cxb5 {[%emt 0:00:00]} Rxc1+ {[%emt 0:00:30]} 25. Rxc1 {[%emt 0:00:00]} axb5 {[%emt 0:00:30]} 26. Na5 {[%emt 0:03:30]} Bg5 {[%emt 0:01:30]} 27. Rc2 {[%emt 0:02:30]} Bd8 {[%emt 0:01:30]} 28. Be3 {[%emt 0:03:30]} Rc7 {[%emt 0:03:30]} 29. Rxc7 {[%emt 0:01:30]} Bxc7 {[%emt 0:00:30]} 30. Ba7 {[%emt 0:02:30]} Qc8 {[%emt 0:00:30]} 31. Bxb5 {[%emt 0:00:30]} Bxa5 {[%emt 0:00:30]} 32. bxa5 {[%emt 0:00:30]} Qc1+ {[%emt 0:00:30]} 33. Bf1 {[%emt 0:00:30]} Qxa3 {[%emt 0:05:32]} 34. Qc2 {[%emt 0:00:30]} Nc6 {[%emt 0:02:42]} 35. Bb6 {[%emt 0:00:30]} Qb4 {[%emt 0:04:14]} 36. Qd3 {[%emt 0:09:30]} Bb7 {[%emt 0:02:54]} 37. Qb5 {[%emt 0:00:00]} Qxb5 {[%emt 0:00:30]} 38. Bxb5 {[%emt 0:00:00]} Nb4 {[%emt 0:00:46]} 39. Bc7 {[%emt 0:01:30]} d5 {[%emt 0:00:45]} 40. Bd6 {[%emt 0:00:00]} Na6 {[%emt 0:01:37]} 41. exd5 {[%emt 0:01:00]} exd5 {[%emt 0:00:30]} 42. Kf2 {[%emt 0:00:30]} f6 {[%emt 0:00:30]} 43. Be8 {[%emt 0:00:30]} g6 {[%emt 0:01:30]} 44. g4 {[%emt 0:00:30]} d4 {[%emt 0:00:30]} 45. f4 {[%emt 0:01:30]} Kg7 {[%emt 0:03:30]} 46. Ke2 {[%emt 0:00:30]} f5 {[%emt 0:01:30]} 47. g5 {[%emt 0:00:00]} h6 {[%emt 0:00:30]} 48. h4 {[%emt 0:00:00]} hxg5 {[%emt 0:00:30]} 49. hxg5 {[%emt 0:00:30]} Bg2 {[%emt 0:00:30]} 50. Bb5 {[%emt 0:00:30]} d3+ {[%emt 0:00:30]} 51. Kd2 {[%emt 0:00:00]} Bb7 {[%emt 0:00:30]} 52. Bc4 {[%emt 0:00:00]} Kh7 {[%emt 0:00:30]} 53. Kxd3 {[%emt 0:00:30]} Kg7 {[%emt 0:00:30]} 54. Kd4 {[%emt 0:00:00]} Kh7 {[%emt 0:00:30]} 55. Ke5 {[%emt 0:00:00]} Kg7 {[%emt 0:00:00]} 56. Ke6 {[%emt 0:00:30]} Bc8+ {[%emt 0:00:00]} 57. Ke7 {[%emt 0:00:30]} Bb7 {[%emt 0:00:30]} 58. Be5+ {[%emt 0:00:00]} Kh7 {[%emt 0:00:00]} 59. Kf8 {[%emt 0:00:00]} 1-0

[Event "TUR-chT Superleague 2018"]
[Site "Ankara"]
[Date "2018.07.28"]
[Round "4"]
[White "Gunduz, Umut Erdem"]
[Black "Tarlabasi, Emirhan"]
[Result "1/2-1/2"]
[ECO "C03"]
[WhiteElo "2130"]
[BlackElo "2117"]
[Annotator "NA"]
[PlyCount "60"]
[EventDate "2018.07.25"]
[EventType "team-tourn"]
[EventCountry "TUR"]
[SourceTitle "playchess.com"]
[Source "ChessBase"]
[SourceQuality "1"]
[TimeControl "40/5400+30:1800+30"]

1. e4 {[%emt 0:00:30]} e6 {[%emt 0:01:00]} 2. d4 {[%emt 0:00:30]} d5 {[%emt 0:00:30]} 3. Nd2 {[%emt 0:00:30]} h6 {[%emt 0:00:00]} 4. Ngf3 {[%emt 0:00:30]} Nf6 {[%emt 0:02:00]} 5. e5 {[%emt 0:00:30]} Nfd7 {[%emt 0:00:30]} 6. Bd3 {[%emt 0:00:30]} c5 {[%emt 0:00:30]} 7. c3 {[%emt 0:00:00]} Nc6 {[%emt 0:00:00]} 8. O-O {[%emt 0:02:00]} g5 {[%emt 0:00:00]} 9. dxc5 {[%emt 0:01:30]} Bxc5 {[%emt 0:00:00]} 10. Nb3 {[%emt 0:11:30]} Bf8 {[%emt 0:00:00]} 11. Re1 {[%emt 0:05:30]} Bg7 {[%emt 0:06:30]} 12. Nbd4 {[%emt 0:09:30]} Ndxe5 {[%emt 0:13:30]} 13. Nxe5 {[%emt 0:00:30]} Nxe5 {[%emt 0:00:30]} 14. Bb5+ {[%emt 0:00:30]} Bd7 {[%emt 0:08:30]} 15. Bxd7+ {[%emt 0:02:30]} Qxd7 {[%emt 0:09:30]} 16. f4 {[%emt 0:33:30]} Nc6 {[%emt 0:10:30]} 17. fxg5 {[%emt 0:14:33]} O-O-O {[%emt 0:07:30]} 18. g6 {[%emt 0:04:40]} Bxd4+ {[%emt 0:10:30]} 19. cxd4 {[%emt 0:00:05]} fxg6 {[%emt 0:00:30]} 20. Bf4 {[%emt 0:00:49]} Rdf8 {[%emt 0:07:30]} 21. Qd2 {[%emt 0:03:25]} g5 {[%emt 0:06:33]} 22. Bg3 {[%emt 0:00:14]} b6 {[%emt 0:03:11]} 23. b4 {[%emt 0:02:24]} Kb7 {[%emt 0:01:16]} 24. a4 {[%emt 0:00:27]} Qg7 {[%emt 0:06:01]} 25. Red1 {[%emt 0:02:32]} Qe7 {[%emt 0:03:09]} 26. a5 {[%emt 0:01:19]} Rc8 {[%emt 0:02:44]} 27. Rdb1 {[%emt 0:01:32]} Qg7 {[%emt 0:00:59]} 28. Rd1 {[%emt 0:01:46]} Qe7 {[%emt 0:00:23]} 29. Rdb1 {[%emt 0:00:09]} Qg7 {[%emt 0:00:04]} 30. Rd1 {[%emt 0:00:30]} Qe7 {[%emt 0:01:06]} 1/2-1/2

[Event "TUR-chT Superleague 2018"]
[Site "Ankara"]
[Date "2018.07.28"]
[Round "4"]
[White "Gulden, Egemen"]
[Black "Caglar, Ahmet Ata"]
[Result "1-0"]
[ECO "B47"]
[WhiteElo "2085"]
[BlackElo "2097"]
[Annotator "NA"]
[PlyCount "85"]
[EventDate "2018.07.25"]
[EventType "team-tourn"]
[EventCountry "TUR"]
[SourceTitle "playchess.com"]
[Source "ChessBase"]
[SourceQuality "1"]
[TimeControl "40/5400+30:1800+30"]

1. e4 {[%emt 0:00:30]} c5 {[%emt 0:01:00]} 2. Nc3 {[%emt 0:00:00]} e6 {[%emt 0:00:30]} 3. Nf3 {[%emt 0:00:00]} Nc6 {[%emt 0:01:30]} 4. d4 {[%emt 0:01:30]} cxd4 {[%emt 0:00:30]} 5. Nxd4 {[%emt 0:00:30]} Qc7 {[%emt 0:00:30]} 6. g3 {[%emt 0:04:30]} Nf6 {[%emt 0:01:30]} 7. Ndb5 {[%emt 0:09:30]} Qb8 {[%emt 0:03:30]} 8. Bf4 {[%emt 0:03:30]} e5 {[%emt 0:07:30]} 9. Bg5 {[%emt 0:01:30]} a6 {[%emt 0:01:30]} 10. Na3 {[%emt 0:07:30]} Bb4 {[%emt 0:03:30]} 11. Bxf6 {[%emt 0:06:30]} gxf6 {[%emt 0:00:30]} 12. Nc4 {[%emt 0:01:30]} b5 {[%emt 0:04:30]} 13. Ne3 {[%emt 0:01:30]} Ne7 {[%emt 0:00:30]} 14. Bg2 {[%emt 0:05:30]} Qc7 {[%emt 0:04:30]} 15. Qd3 {[%emt 0:00:30]} Bb7 {[%emt 0:10:30]} 16. O-O {[%emt 0:02:30]} Bxc3 {[%emt 0:00:00]} 17. bxc3 {[%emt 0:00:30]} Rc8 {[%emt 0:01:00]} 18. Rfd1 {[%emt 0:02:30]} Bc6 {[%emt 0:17:30]} 19. Ng4 {[%emt 0:04:30]} f5 {[%emt 0:01:30]} 20. exf5 {[%emt 0:03:30]} Bxg2 {[%emt 0:00:30]} 21. Nf6+ {[%emt 0:05:30]} Kf8 {[%emt 0:00:30]} 22. Nxd7+ {[%emt 0:00:00]} Ke8 {[%emt 0:03:30]} 23. Kxg2 {[%emt 0:04:00]} Qc6+ {[%emt 0:00:30]} 24. Kg1 {[%emt 0:00:30]} f6 {[%emt 0:01:30]} 25. Qd6 {[%emt 0:04:30]} Kf7 {[%emt 0:10:30]} 26. Nxf6 {[%emt 0:03:30]} Nxf5 {[%emt 0:00:00]} 27. Qxc6 {[%emt 0:01:30]} Rxc6 {[%emt 0:00:00]} 28. Ne4 {[%emt 0:00:30]} Rc4 {[%emt 0:04:30]} 29. f3 {[%emt 0:08:53]} Ra4 {[%emt 0:01:30]} 30. Rd7+ {[%emt 0:02:24]} Kg6 {[%emt 0:01:25]} 31. g4 {[%emt 0:06:15]} Ne3 {[%emt 0:00:10]} 32. Re1 {[%emt 0:01:28]} Nc4 {[%emt 0:01:16]} 33. Red1 {[%emt 0:02:43]} Rf8 {[%emt 0:00:50]} 34. Kf2 {[%emt 0:03:28]} Rxa2 {[%emt 0:02:29]} 35. h4 {[%emt 0:01:49]} h5 {[%emt 0:09:43]} 36. gxh5+ {[%emt 0:00:40]} Kf5 {[%emt 0:02:57]} 37. Rg7 {[%emt 0:01:36]} Rxc2+ {[%emt 0:00:11]} 38. Kg3 {[%emt 0:00:45]} Ne3 {[%emt 0:01:45]} 39. Rg5+ {[%emt 0:00:31]} Ke6 {[%emt 0:00:21]} 40. Rd6+ {[%emt 0:00:00]} Ke7 {[%emt 0:01:23]} 41. Rxe5+ {[%emt 0:00:58]} Kf7 {[%emt 0:00:30]} 42. Rf6+ {[%emt 0:00:30]} Kg7 {[%emt 0:00:00]} 43. h6+ {[%emt 0:01:30]} 1-0

[Event "TUR-chT Superleague 2018"]
[Site "Ankara"]
[Date "2018.07.28"]
[Round "4"]
[White "Gulbeyaz, Emir"]
[Black "Tasdogen, Dincer"]
[Result "1-0"]
[ECO "B20"]
[WhiteElo "2074"]
[BlackElo "2280"]
[Annotator "NA"]
[PlyCount "111"]
[EventDate "2018.07.25"]
[EventType "team-tourn"]
[EventCountry "TUR"]
[SourceTitle "playchess.com"]
[Source "ChessBase"]
[SourceQuality "1"]
[TimeControl "40/5400+30:1800+30"]

1. e4 {[%emt 0:00:30]} c5 {[%emt 0:01:00]} 2. b3 {[%emt 0:00:30]} e6 {[%emt 0:00:00]} 3. Bb2 {[%emt 0:00:00]} a6 {[%emt 0:00:00]} 4. Qe2 {[%emt 0:02:00]} Nc6 {[%emt 0:02:30]} 5. Nf3 {[%emt 0:00:00]} b5 {[%emt 0:04:30]} 6. Nc3 {[%emt 0:02:00]} Nge7 {[%emt 0:13:30]} 7. O-O-O {[%emt 0:10:30]} Nd4 {[%emt 0:00:30]} 8. Qe3 {[%emt 0:01:30]} Nec6 {[%emt 0:07:30]} 9. Ne2 {[%emt 0:17:30]} Qa5 {[%emt 0:01:30]} 10. a3 {[%emt 0:15:30]} Bb7 {[%emt 0:24:30]} 11. Nexd4 {[%emt 0:04:30]} cxd4 {[%emt 0:01:30]} 12. Nxd4 {[%emt 0:00:30]} Bxa3 {[%emt 0:00:00]} 13. Nxc6 {[%emt 0:00:30]} Bxc6 {[%emt 0:00:00]} 14. d4 {[%emt 0:00:00]} d5 {[%emt 0:10:30]} 15. e5 {[%emt 0:02:00]} b4 {[%emt 0:04:30]} 16. h4 {[%emt 0:09:30]} Bxb2+ {[%emt 0:02:30]} 17. Kxb2 {[%emt 0:00:30]} Qa3+ {[%emt 0:00:30]} 18. Kb1 {[%emt 0:00:30]} a5 {[%emt 0:00:00]} 19. Qc1 {[%emt 0:00:00]} Qxc1+ {[%emt 0:00:00]} 20. Kxc1 {[%emt 0:02:00]} Kd7 {[%emt 0:01:30]} 21. Kd2 {[%emt 0:00:00]} a4 {[%emt 0:03:30]} 22. bxa4 {[%emt 0:00:00]} Rxa4 {[%emt 0:01:30]} 23. Bd3 {[%emt 0:00:30]} b3 {[%emt 0:01:37]} 24. Ra1 {[%emt 0:02:30]} bxc2 {[%emt 0:12:11]} 25. Rxa4 {[%emt 0:00:30]} Bxa4 {[%emt 0:00:30]} 26. Ra1 {[%emt 0:00:30]} Rc8 {[%emt 0:00:00]} 27. Kc1 {[%emt 0:00:30]} Bc6 {[%emt 0:05:09]} 28. Ra7+ {[%emt 0:00:30]} Ke8 {[%emt 0:01:29]} 29. Bxh7 {[%emt 0:06:30]} Bd7 {[%emt 0:00:24]} 30. Bg8 {[%emt 0:05:03]} Rd8 {[%emt 0:02:00]} 31. h5 {[%emt 0:01:21]} Ke7 {[%emt 0:00:01]} 32. Bh7 {[%emt 0:00:31]} Rc8 {[%emt 0:00:01]} 33. Bd3 {[%emt 0:00:39]} Ke8 {[%emt 0:01:29]} 34. Ra3 {[%emt 0:00:06]} Ke7 {[%emt 0:00:35]} 35. g4 {[%emt 0:00:55]} Kf8 {[%emt 0:01:00]} 36. g5 {[%emt 0:00:16]} Kg8 {[%emt 0:00:02]} 37. h6 {[%emt 0:00:46]} gxh6 {[%emt 0:00:30]} 38. gxh6 {[%emt 0:00:30]} Rb8 {[%emt 0:00:00]} 39. h7+ {[%emt 0:00:00]} Kg7 {[%emt 0:00:56]} 40. Bxc2 {[%emt 0:00:00]} Bc6 {[%emt 0:01:06]} 41. Rc3 {[%emt 0:00:53]} Bd7 {[%emt 0:02:30]} 42. Kd2 {[%emt 0:01:30]} Ra8 {[%emt 0:04:30]} 43. Ke3 {[%emt 0:01:30]} Rb8 {[%emt 0:02:30]} 44. Kf4 {[%emt 0:00:00]} Ra8 {[%emt 0:00:30]} 45. Rg3+ {[%emt 0:01:00]} Kh8 {[%emt 0:00:30]} 46. Kg5 {[%emt 0:00:00]} Kg7 {[%emt 0:01:30]} 47. Kh5+ {[%emt 0:00:00]} Kh8 {[%emt 0:00:30]} 48. Kh6 {[%emt 0:00:30]} Rc8 {[%emt 0:00:00]} 49. Rg7 {[%emt 0:00:30]} Rf8 {[%emt 0:00:00]} 50. Bd1 {[%emt 0:00:00]} Bc6 {[%emt 0:01:30]} 51. Bh5 {[%emt 0:00:00]} Be8 {[%emt 0:00:00]} 52. f3 {[%emt 0:01:30]} f6 {[%emt 0:00:00]} 53. Bxe8 {[%emt 0:00:30]} Rxe8 {[%emt 0:00:30]} 54. exf6 {[%emt 0:00:30]} e5 {[%emt 0:00:30]} 55. dxe5 {[%emt 0:00:30]} d4 {[%emt 0:00:00]} 56. f7 {[%emt 0:00:30]} 1-0